[Event "Championnat d'Europe de Blitz"]
[Date "2024.12.09"]
[White "Zlatkov, Anton"]
[Black "Saraci, Nderim"]
[WhiteElo "2324"]
[BlackElo "2431"]
[Round "4.25"]
[Result "1-0"]
[TimeControl "180+2"]

1. c4 {[%emt 00:00:05] [%clk 00:03:00]} Nf6 {[%clk 00:03:03]} 2. Nc3 {[%clk
00:03:02]} e6 {[%emt 00:00:06] [%clk 00:02:57]} 3. e4 {[%emt 00:00:03] [%clk
00:03:02]} d5 {[%emt 00:00:02] [%clk 00:02:57]} 4. cxd5 {[%emt 00:00:03] [%clk
00:03:01]} exd5 {[%emt 00:00:01] [%clk 00:02:58]} 5. e5 {[%clk 00:03:02]} d4
{[%clk 00:02:59]} 6. exf6 {[%emt 00:00:06] [%clk 00:02:59]} dxc3 {[%emt
00:00:01] [%clk 00:02:59]} 7. Bb5+ {[%emt 00:00:01] [%clk 00:03:00]} c6 {[%emt
00:00:35] [%clk 00:02:27]} 8. Qe2+ {[%emt 00:00:01] [%clk 00:03:01]} Be6 {[%clk
00:02:27]} 9. Bc4 {[%emt 00:00:01] [%clk 00:03:02]} Qxf6 {[%emt 00:00:34] [%clk
00:01:55]} 10. dxc3 {[%emt 00:00:02] [%clk 00:03:03]} Be7 {[%emt 00:00:09] [%clk
00:01:47]} 11. Bxe6 {[%emt 00:00:04] [%clk 00:03:01]} Qxe6 {[%emt 00:00:01]
[%clk 00:01:48]} 12. Qxe6 {[%emt 00:00:03] [%clk 00:03:01]} fxe6 {[%clk
00:01:48]} 13. Nf3 {[%emt 00:00:03] [%clk 00:03:00]} Bf6 {[%emt 00:00:01] [%clk
00:01:49]} 14. Bf4 {[%emt 00:00:04] [%clk 00:02:57]} Nd7 {[%emt 00:00:02] [%clk
00:01:50]} 15. O-O-O {[%emt 00:00:29] [%clk 00:02:30]} Nb6 {[%emt 00:00:08]
[%clk 00:01:45]} 16. Rhe1 {[%emt 00:00:07] [%clk 00:02:25]} O-O {[%emt 00:00:03]
[%clk 00:01:44]} 17. Be5 {[%emt 00:00:16] [%clk 00:02:10]} Rae8 {[%emt 00:00:11]
[%clk 00:01:35]} 18. Re2 {[%emt 00:00:04] [%clk 00:02:08]} Nd5 {[%emt 00:00:11]
[%clk 00:01:26]} 19. g3 {[%emt 00:00:36] [%clk 00:01:34]} Bd8 {[%emt 00:00:17]
[%clk 00:01:11]} 20. Nd4 {[%emt 00:00:11] [%clk 00:01:25]} g5 {[%emt 00:00:01]
[%clk 00:01:12]} 21. c4 {[%emt 00:00:10] [%clk 00:01:18]} Nb6 {[%emt 00:00:07]
[%clk 00:01:06]} 22. b3 {[%emt 00:00:12] [%clk 00:01:08]} Nd7 {[%emt 00:00:01]
[%clk 00:01:07]} 23. Bd6 {[%emt 00:00:24] [%clk 00:00:47]} Rf6 {[%emt 00:00:08]
[%clk 00:01:00]} 24. Nc2 {[%emt 00:00:02] [%clk 00:00:46]} Bb6 {[%emt 00:00:10]
[%clk 00:00:53]} 25. f4 {[%emt 00:00:03] [%clk 00:00:45]} gxf4 {[%emt 00:00:06]
[%clk 00:00:49]} 26. Bxf4 {[%emt 00:00:01] [%clk 00:00:46]} Rf7 {[%emt 00:00:05]
[%clk 00:00:46]} 27. Be5 {[%emt 00:00:19] [%clk 00:00:29]} Rf5 {[%emt 00:00:20]
[%clk 00:00:28]} 28. Rxd7 {[%emt 00:00:05] [%clk 00:00:26]} Rf7 {[%emt 00:00:08]
[%clk 00:00:22]} 29. Rxf7 {[%emt 00:00:03] [%clk 00:00:26]} Kxf7 {[%emt
00:00:01] [%clk 00:00:23]} 30. Bd4 {[%clk 00:00:27]} Bc7 {[%emt 00:00:02] [%clk
00:00:23]} 31. Rf2+ {[%emt 00:00:01] [%clk 00:00:28]} Ke7 {[%emt 00:00:01] [%clk
00:00:24]} 32. Bc5+ {[%emt 00:00:01] [%clk 00:00:29]} Kd8 {[%emt 00:00:03] [%clk
00:00:23]} 33. Rf7 {[%emt 00:00:02] [%clk 00:00:29]} h5 {[%emt 00:00:02] [%clk
00:00:24]} 34. Ne3 {[%emt 00:00:02] [%clk 00:00:27]} b6 {[%emt 00:00:05] [%clk
00:00:22]} 35. Bb4 {[%emt 00:00:02] [%clk 00:00:27]} Kc8 {[%clk 00:00:23]} 36.
Rf8 {[%emt 00:00:01] [%clk 00:00:28]} Rxf8 {[%emt 00:00:03] [%clk 00:00:23]} 37.
Bxf8 {[%clk 00:00:29]} h4 {[%clk 00:00:24]} 38. gxh4 {[%clk 00:00:29]} Bxh2
{[%emt 00:00:01] [%clk 00:00:24]} 39. h5 {[%emt 00:00:02] [%clk 00:00:29]} Bf4
{[%clk 00:00:25]} 40. Kd2 {[%emt 00:00:01] [%clk 00:00:31]} Kd7 {[%emt 00:00:01]
[%clk 00:00:25]} 41. h6 {[%emt 00:00:06] [%clk 00:00:26]} Ke8 {[%emt 00:00:02]
[%clk 00:00:26]} 42. h7 {[%emt 00:00:11] [%clk 00:00:17]} Be5 {[%emt 00:00:01]
[%clk 00:00:28]} 43. Ng4 {[%emt 00:00:02] [%clk 00:00:17]} Bh8 {[%emt 00:00:11]
[%clk 00:00:18]} 44. Bd6 {[%emt 00:00:01] [%clk 00:00:18]} Kf7 {[%emt 00:00:04]
[%clk 00:00:17]} 45. Be5 {[%clk 00:00:19]} 1-0

[Site "Europe Echecs"]

[Event "Championnat d'Europe de Blitz"]
[Date "2024.12.09"]
[White "Samunenkov, Ihor"]
[Black "Domingo Nunez, Ruben"]
[WhiteElo "2543"]
[BlackElo "2409"]
[Round "4.26"]
[Result "0-1"]
[TimeControl "180+2"]

1. d4 {[%clk 00:03:01]} g6 {[%clk 00:03:03]} 2. Nf3 {[%emt 00:00:02] [%clk
00:03:01]} Bg7 {[%emt 00:00:01] [%clk 00:03:04]} 3. g3 {[%emt 00:00:02] [%clk
00:03:01]} Nf6 {[%emt 00:00:01] [%clk 00:03:05]} 4. Bg2 {[%emt 00:00:01] [%clk
00:03:02]} O-O {[%emt 00:00:02] [%clk 00:03:06]} 5. O-O {[%emt 00:00:02] [%clk
00:03:01]} d6 {[%emt 00:00:02] [%clk 00:03:07]} 6. Re1 {[%clk 00:03:02]} Nc6
{[%emt 00:00:01] [%clk 00:03:08]} 7. d5 {[%emt 00:00:02] [%clk 00:03:02]} Nb8
{[%clk 00:03:09]} 8. c4 {[%emt 00:00:13] [%clk 00:02:51]} c5 {[%emt 00:00:05]
[%clk 00:03:06]} 9. Nc3 {[%emt 00:00:09] [%clk 00:02:43]} Nbd7 {[%emt 00:00:02]
[%clk 00:03:06]} 10. e4 {[%emt 00:00:04] [%clk 00:02:41]} Ne8 {[%clk 00:03:07]}
11. Bf4 {[%emt 00:00:06] [%clk 00:02:37]} Ne5 {[%emt 00:00:02] [%clk 00:03:08]}
12. Nxe5 {[%emt 00:00:05] [%clk 00:02:33]} dxe5 {[%clk 00:03:09]} 13. Be3 {[%emt
00:00:02] [%clk 00:02:33]} b6 {[%clk 00:03:11]} 14. a3 {[%emt 00:00:11] [%clk
00:02:24]} Nd6 {[%emt 00:00:01] [%clk 00:03:12]} 15. Qd3 {[%emt 00:00:03] [%clk
00:02:23]} f5 {[%emt 00:00:01] [%clk 00:03:13]} 16. exf5 {[%emt 00:00:20] [%clk
00:02:05]} Bxf5 {[%emt 00:00:20] [%clk 00:02:54]} 17. Qe2 {[%emt 00:00:09] [%clk
00:01:58]} Qd7 {[%emt 00:00:03] [%clk 00:02:53]} 18. b4 {[%emt 00:00:06] [%clk
00:01:54]} e4 {[%emt 00:00:24] [%clk 00:02:32]} 19. Rac1 {[%emt 00:00:03] [%clk
00:01:53]} Bg4 {[%clk 00:02:33]} 20. Qc2 {[%emt 00:00:10] [%clk 00:01:46]} Nxc4
{[%emt 00:00:28] [%clk 00:02:07]} 21. bxc5 {[%emt 00:00:06] [%clk 00:01:41]}
Nxe3 {[%emt 00:00:29] [%clk 00:01:41]} 22. fxe3 {[%emt 00:00:02] [%clk
00:01:40]} Bxc3 {[%emt 00:01:18] [%clk 00:00:26]} 23. Qxc3 {[%emt 00:00:06]
[%clk 00:01:36]} Qxd5 {[%clk 00:00:27]} 24. Qb4 {[%emt 00:00:22] [%clk
00:01:16]} bxc5 {[%emt 00:00:13] [%clk 00:00:15]} 25. Rxc5 {[%emt 00:00:05]
[%clk 00:01:14]} Qf7 {[%emt 00:00:01] [%clk 00:00:17]} 26. Rc2 {[%emt 00:00:35]
[%clk 00:00:40]} Bf3 {[%emt 00:00:07] [%clk 00:00:12]} 27. Bf1 {[%emt 00:00:01]
[%clk 00:00:40]} Kh8 {[%emt 00:00:09] [%clk 00:00:05]} 28. Bc4 {[%emt 00:00:03]
[%clk 00:00:39]} Qf6 {[%emt 00:00:01] [%clk 00:00:07]} 29. Bd5 {[%emt 00:00:08]
[%clk 00:00:33]} Rab8 {[%emt 00:00:01] [%clk 00:00:08]} 30. Qa4 {[%emt 00:00:14]
[%clk 00:00:20]} Rb2 {[%emt 00:00:02] [%clk 00:00:08]} 31. Rf1 {[%clk 00:00:21]}
Qb6 {[%emt 00:00:04] [%clk 00:00:06]} 32. Rxb2 {[%emt 00:00:16] [%clk 00:00:07]}
Qxb2 {[%emt 00:00:01] [%clk 00:00:08]} 33. Qd4+ {[%emt 00:00:01] [%clk
00:00:08]} Qxd4 {[%emt 00:00:01] [%clk 00:00:08]} 34. exd4 {[%emt 00:00:02]
[%clk 00:00:08]} Kg7 {[%clk 00:00:10]} 35. Re1 {[%emt 00:00:03] [%clk 00:00:07]}
Rf6 {[%emt 00:00:05] [%clk 00:00:07]} 36. a4 {[%emt 00:00:06] [%clk 00:00:03]}
Rd6 {[%clk 00:00:08]} 37. Bb7 {[%emt 00:00:02] [%clk 00:00:03]} Rxd4 {[%clk
00:00:09]} 38. Kf2 {[%emt 00:00:02] [%clk 00:00:03]} Rxa4 {[%clk 00:00:10]} 39.
Ke3 {[%emt 00:00:02] [%clk 00:00:03]} Kf6 {[%emt 00:00:01] [%clk 00:00:11]} 40.
Rc1 {[%clk 00:00:04]} Ra3+ {[%clk 00:00:13]} 41. Kd4 {[%emt 00:00:03] [%clk
00:00:03]} Rd3+ {[%emt 00:00:02] [%clk 00:00:12]} 42. Kc4 {[%emt 00:00:02] [%clk
00:00:04]} Rd6 {[%emt 00:00:01] [%clk 00:00:12]} 43. Ra1 {[%emt 00:00:03] [%clk
00:00:04]} a6 {[%emt 00:00:02] [%clk 00:00:12]} 44. Rf1 {[%emt 00:00:03] [%clk
00:00:03]} Ke5 {[%emt 00:00:01] [%clk 00:00:13]} 45. Re1 {[%emt 00:00:01] [%clk
00:00:04]} Rb6 {[%emt 00:00:03] [%clk 00:00:12]} 46. Ba8 {[%emt 00:00:01] [%clk
00:00:05]} Rb8 {[%emt 00:00:02] [%clk 00:00:12]} 47. Bc6 {[%emt 00:00:03] [%clk
00:00:04]} Kd6 {[%emt 00:00:03] [%clk 00:00:11]} 48. Bxe4 {[%emt 00:00:02] [%clk
00:00:04]} Bxe4 {[%emt 00:00:03] [%clk 00:00:10]} 49. Rxe4 {[%clk 00:00:05]} e5
{[%emt 00:00:02] [%clk 00:00:10]} 50. Rh4 {[%clk 00:00:06]} Rb7 {[%clk
00:00:11]} 51. Kc3 {[%emt 00:00:03] [%clk 00:00:04]} Kd5 {[%clk 00:00:12]} 52.
Ra4 {[%clk 00:00:05]} Rb6 {[%clk 00:00:13]} 53. g4 {[%clk 00:00:06]} Rc6+ {[%emt
00:00:05] [%clk 00:00:11]} 54. Kd3 {[%emt 00:00:01] [%clk 00:00:07]} e4+ {[%emt
00:00:02] [%clk 00:00:11]} 55. Ke3 {[%emt 00:00:03] [%clk 00:00:06]} Rc5 {[%emt
00:00:05] [%clk 00:00:08]} 56. Rxa6 {[%emt 00:00:02] [%clk 00:00:05]} Rc3+
{[%clk 00:00:09]} 57. Kf2 {[%emt 00:00:02] [%clk 00:00:05]} Ke5 {[%emt 00:00:03]
[%clk 00:00:09]} 58. Ra7 {[%emt 00:00:03] [%clk 00:00:04]} Kf4 {[%emt 00:00:02]
[%clk 00:00:09]} 59. Rf7+ {[%emt 00:00:01] [%clk 00:00:05]} Kxg4 {[%emt
00:00:02] [%clk 00:00:09]} 60. Rxh7 {[%clk 00:00:06]} Rh3 {[%emt 00:00:03] [%clk
00:00:08]} 61. Re7 {[%emt 00:00:04] [%clk 00:00:04]} Rxh2+ {[%emt 00:00:04]
[%clk 00:00:06]} 62. Ke3 {[%emt 00:00:01] [%clk 00:00:04]} Kf5 {[%emt 00:00:04]
[%clk 00:00:04]} 63. Rf7+ {[%emt 00:00:02] [%clk 00:00:04]} Kg4 {[%emt 00:00:01]
[%clk 00:00:05]} 64. Rf4+ {[%emt 00:00:03] [%clk 00:00:04]} Kg5 {[%emt 00:00:01]
[%clk 00:00:05]} 65. Rxe4 {[%emt 00:00:02] [%clk 00:00:04]} Rh4 {[%emt 00:00:03]
[%clk 00:00:05]} 66. Re8 {[%emt 00:00:03] [%clk 00:00:03]} Rf4 {[%clk 00:00:06]}
67. Rg8 {[%emt 00:00:01] [%clk 00:00:04]} Rf6 {[%clk 00:00:07]} 68. Ke2 {[%emt
00:00:02] [%clk 00:00:04]} Kg4 {[%clk 00:00:08]} 69. Ke3 {[%emt 00:00:02] [%clk
00:00:05]} g5 {[%emt 00:00:01] [%clk 00:00:09]} 70. Rg7 {[%emt 00:00:01] [%clk
00:00:05]} Kh4 {[%emt 00:00:02] [%clk 00:00:10]} 71. Ke2 {[%emt 00:00:03] [%clk
00:00:04]} g4 {[%emt 00:00:01] [%clk 00:00:11]} 72. Ke3 {[%emt 00:00:02] [%clk
00:00:04]} Kh3 {[%emt 00:00:02] [%clk 00:00:11]} 73. Ke2 {[%emt 00:00:02] [%clk
00:00:04]} g3 {[%emt 00:00:02] [%clk 00:00:11]} 74. Rh7+ {[%emt 00:00:02] [%clk
00:00:04]} Kg2 {[%clk 00:00:12]} 75. Re7 {[%clk 00:00:05]} Kg1 {[%emt 00:00:04]
[%clk 00:00:10]} 76. Ke1 {[%emt 00:00:04] [%clk 00:00:03]} g2 {[%emt 00:00:02]
[%clk 00:00:10]} 77. Ke2 {[%emt 00:00:01] [%clk 00:00:04]} Rf5 {[%emt 00:00:01]
[%clk 00:00:10]} 78. Ke1 {[%emt 00:00:01] [%clk 00:00:05]} Kh2 {[%emt 00:00:03]
[%clk 00:00:09]} 79. Rh7+ {[%emt 00:00:02] [%clk 00:00:06]} Kg1 {[%emt 00:00:04]
[%clk 00:00:07]} 80. Re7 {[%clk 00:00:07]} Rf4 {[%emt 00:00:02] [%clk 00:00:06]}
81. Ke2 {[%emt 00:00:01] [%clk 00:00:08]} Rf2+ {[%emt 00:00:02] [%clk 00:00:07]}
82. Ke1 {[%clk 00:00:09]} Ra2 {[%emt 00:00:02] [%clk 00:00:08]} 83. Re8 {[%emt
00:00:01] [%clk 00:00:09]} Kh2 {[%emt 00:00:03] [%clk 00:00:06]} 84. Rh8+ {[%emt
00:00:01] [%clk 00:00:10]} Kg1 {[%clk 00:00:07]} 85. Re8 {[%emt 00:00:01] [%clk
00:00:11]} Ra4 {[%emt 00:00:02] [%clk 00:00:08]} 86. Re7 {[%emt 00:00:03] [%clk
00:00:10]} Rh4 {[%emt 00:00:02] [%clk 00:00:07]} 87. Re8 {[%emt 00:00:02] [%clk
00:00:11]} Kh2 {[%emt 00:00:02] [%clk 00:00:06]} 0-1

[Site "Europe Echecs"]

[Event "Championnat d'Europe de Blitz"]
[Date "2024.12.09"]
[White "Manea, Alexandru"]
[Black "Safarli, Eltaj"]
[WhiteElo "2272"]
[BlackElo "2610"]
[Round "4.27"]
[Result "1-0"]
[TimeControl "180+2"]

1. Nf3 {[%clk 00:03:03]} Nf6 {[%emt 00:00:01] [%clk 00:03:03]} 2. g3 {[%clk
00:03:04]} g6 {[%emt 00:00:01] [%clk 00:03:04]} 3. Bg2 {[%clk 00:03:06]} Bg7
{[%emt 00:00:03] [%clk 00:03:05]} 4. O-O {[%clk 00:03:06]} O-O {[%clk 00:03:06]}
5. c4 {[%emt 00:00:03] [%clk 00:03:06]} c6 {[%emt 00:00:03] [%clk 00:03:05]} 6.
d4 {[%emt 00:00:01] [%clk 00:03:07]} d5 {[%emt 00:00:01] [%clk 00:03:05]} 7.
cxd5 {[%emt 00:00:03] [%clk 00:03:06]} cxd5 {[%emt 00:00:01] [%clk 00:03:05]} 8.
Nc3 {[%clk 00:03:08]} Nc6 {[%emt 00:00:03] [%clk 00:03:05]} 9. Ne5 {[%clk
00:03:09]} Bf5 {[%emt 00:00:01] [%clk 00:03:06]} 10. Nxc6 {[%emt 00:00:03] [%clk
00:03:07]} bxc6 {[%clk 00:03:07]} 11. Bf4 {[%emt 00:00:04] [%clk 00:03:05]} Nd7
{[%emt 00:00:07] [%clk 00:03:02]} 12. Rc1 {[%emt 00:00:09] [%clk 00:02:58]} e5
{[%emt 00:00:20] [%clk 00:02:45]} 13. dxe5 {[%emt 00:00:01] [%clk 00:02:59]}
Nxe5 {[%emt 00:00:01] [%clk 00:02:46]} 14. b3 {[%emt 00:00:01] [%clk 00:02:59]}
Re8 {[%emt 00:00:04] [%clk 00:02:44]} 15. Qd2 {[%emt 00:00:02] [%clk 00:02:58]}
h5 {[%emt 00:00:09] [%clk 00:02:38]} 16. h3 {[%emt 00:00:05] [%clk 00:02:55]}
Rc8 {[%emt 00:00:17] [%clk 00:02:24]} 17. Na4 {[%emt 00:00:04] [%clk 00:02:54]}
h4 {[%emt 00:01:19] [%clk 00:01:06]} 18. g4 {[%emt 00:00:02] [%clk 00:02:54]}
Nxg4 {[%emt 00:00:01] [%clk 00:01:07]} 19. hxg4 {[%emt 00:00:08] [%clk
00:02:48]} Bxg4 {[%emt 00:00:01] [%clk 00:01:08]} 20. Rfe1 {[%emt 00:00:08]
[%clk 00:02:41]} h3 {[%emt 00:00:02] [%clk 00:01:09]} 21. Bf3 {[%emt 00:00:13]
[%clk 00:02:30]} Bxf3 {[%emt 00:00:19] [%clk 00:00:52]} 22. exf3 {[%emt
00:00:02] [%clk 00:02:30]} Qf6 {[%emt 00:00:02] [%clk 00:00:52]} 23. Re3 {[%emt
00:00:35] [%clk 00:01:54]} d4 {[%emt 00:00:05] [%clk 00:00:52]} 24. Rd3 {[%clk
00:01:56]} Qf5 {[%emt 00:00:12] [%clk 00:00:43]} 25. Nc5 {[%emt 00:00:21] [%clk
00:01:36]} Rcd8 {[%emt 00:00:04] [%clk 00:00:41]} 26. Ne4 {[%emt 00:00:04] [%clk
00:01:33]} Qh5 {[%emt 00:00:12] [%clk 00:00:32]} 27. Kh2 {[%emt 00:00:10]} Rd5
{[%clk 00:00:33]} 28. Ng3 {[%emt 00:00:02] [%clk 00:01:26]} Qh4 {[%emt 00:00:03]
[%clk 00:00:33]} 29. Rxc6 {[%emt 00:00:08] [%clk 00:01:21]} g5 {[%emt 00:00:18]
[%clk 00:00:16]} 30. Bc7 {[%emt 00:00:11] [%clk 00:01:11]} f5 {[%emt 00:00:08]
[%clk 00:00:11]} 31. Qd1 {[%emt 00:00:05] [%clk 00:01:09]} f4 {[%emt 00:00:02]
[%clk 00:00:11]} 32. Rg6 {[%emt 00:00:23] [%clk 00:00:47]} fxg3+ {[%emt
00:00:03] [%clk 00:00:09]} 33. Bxg3 {[%emt 00:00:01] [%clk 00:00:48]} Qh5 {[%emt
00:00:01] [%clk 00:00:10]} 34. Rc6 {[%emt 00:00:07] [%clk 00:00:43]} Rd7 {[%emt
00:00:02] [%clk 00:00:09]} 35. Rc5 {[%emt 00:00:14] [%clk 00:00:32]} Rde7 {[%emt
00:00:02] [%clk 00:00:09]} 36. f4 {[%emt 00:00:09] [%clk 00:00:25]} Qxd1 {[%emt
00:00:01] [%clk 00:00:09]} 37. Rxd1 {[%emt 00:00:01] [%clk 00:00:27]} gxf4
{[%clk 00:00:10]} 38. Bxf4 {[%emt 00:00:01] [%clk 00:00:28]} Re2 {[%clk
00:00:12]} 39. Bg3 {[%emt 00:00:05] [%clk 00:00:25]} Rxa2 {[%emt 00:00:03] [%clk
00:00:11]} 40. Kxh3 {[%emt 00:00:03] [%clk 00:00:23]} Rb2 {[%emt 00:00:06] [%clk
00:00:07]} 41. Rd3 {[%clk 00:00:25]} Rb1 {[%emt 00:00:03] [%clk 00:00:06]} 42.
Rc7 {[%emt 00:00:02] [%clk 00:00:25]} a5 {[%clk 00:00:08]} 43. Ra7 {[%emt
00:00:02] [%clk 00:00:25]} Ra1 {[%emt 00:00:05] [%clk 00:00:05]} 44. Kg2 {[%emt
00:00:03] [%clk 00:00:23]} Ra3 {[%emt 00:00:01] [%clk 00:00:06]} 45. Bd6 {[%emt
00:00:04] [%clk 00:00:21]} Ra2 {[%emt 00:00:01] [%clk 00:00:07]} 46. Rg3 {[%clk
00:00:23]} 1-0

[Site "Europe Echecs"]

[Event "Championnat d'Europe de Blitz"]
[Date "2024.12.09"]
[White "Muter, Donny"]
[Black "Fressinet, Laurent"]
[WhiteElo "2206"]
[BlackElo "2588"]
[Round "4.28"]
[Result "0-1"]
[TimeControl "180+2"]

1. b3 {[%emt 00:16:16] [%clk 00:03:03]} g6 {[%clk 00:03:03]} 2. Bb2 {[%emt
00:00:01] [%clk 00:03:04]} Nf6 {[%clk 00:03:04]} 3. Nf3 {[%emt 00:00:01] [%clk
00:03:05]} Bg7 {[%emt 00:00:03] [%clk 00:03:05]} 4. e3 {[%clk 00:03:06]} c5
{[%emt 00:00:06] [%clk 00:03:00]} 5. Be2 {[%emt 00:00:01] [%clk 00:03:07]} O-O
{[%emt 00:00:04] [%clk 00:02:58]} 6. O-O {[%emt 00:00:02] [%clk 00:03:07]} Nc6
{[%emt 00:00:08] [%clk 00:02:52]} 7. d4 {[%emt 00:00:03] [%clk 00:03:06]} d6
{[%emt 00:00:03] [%clk 00:02:52]} 8. c4 {[%emt 00:00:03] [%clk 00:03:05]} Bf5
{[%emt 00:00:02] [%clk 00:02:52]} 9. Nc3 {[%emt 00:00:11] [%clk 00:02:56]} Ne4
{[%emt 00:00:02] [%clk 00:02:52]} 10. Nxe4 {[%emt 00:01:06] [%clk 00:01:52]}
Bxe4 {[%emt 00:00:02] [%clk 00:02:52]} 11. Qd2 {[%clk 00:01:53]} Qb6 {[%emt
00:00:18] [%clk 00:02:36]} 12. Rfd1 {[%emt 00:00:02] [%clk 00:01:54]} Rad8
{[%emt 00:00:13] [%clk 00:02:24]} 13. Bc3 {[%emt 00:00:26] [%clk 00:01:31]} Qc7
{[%emt 00:00:25] [%clk 00:02:01]} 14. d5 {[%emt 00:00:13] [%clk 00:01:20]} Bxc3
{[%emt 00:00:15] [%clk 00:01:48]} 15. Qxc3 {[%emt 00:00:02] [%clk 00:01:20]}
Bxf3 {[%emt 00:00:01] [%clk 00:01:48]} 16. Bxf3 {[%emt 00:00:01] [%clk
00:01:21]} Ne5 {[%emt 00:00:01] [%clk 00:01:49]} 17. Be2 {[%clk 00:01:22]} Nd7
{[%emt 00:00:08] [%clk 00:01:43]} 18. h4 {[%emt 00:00:20] [%clk 00:01:04]} Nf6
{[%emt 00:00:05] [%clk 00:01:40]} 19. h5 {[%emt 00:00:02] [%clk 00:01:04]} Qd7
{[%emt 00:00:09] [%clk 00:01:33]} 20. Qc2 {[%emt 00:00:04] [%clk 00:01:02]} gxh5
{[%emt 00:00:07] [%clk 00:01:27]} 21. e4 {[%emt 00:00:25] [%clk 00:00:40]} Kh8
{[%emt 00:00:02] [%clk 00:01:27]} 22. Rd3 {[%emt 00:00:07] [%clk 00:00:35]} Rg8
{[%emt 00:00:01] [%clk 00:01:28]} 23. Re3 {[%emt 00:00:31] [%clk 00:00:06]} Rg7
{[%emt 00:00:11] [%clk 00:01:19]} 24. Bf3 {[%emt 00:00:02] [%clk 00:00:05]} Rdg8
{[%emt 00:00:09] [%clk 00:01:12]} 25. Kf1 {[%emt 00:00:02] [%clk 00:00:05]} Ng4
{[%emt 00:00:12] [%clk 00:01:02]} 26. Rc3 {[%emt 00:00:01] [%clk 00:00:07]} Nh2+
{[%emt 00:00:26] [%clk 00:00:37]} 27. Ke2 {[%clk 00:00:08]} Nxf3 {[%clk
00:00:38]} 28. Rxf3 {[%emt 00:00:05] [%clk 00:00:06]} Rxg2 {[%emt 00:00:04]
[%clk 00:00:37]} 29. Rxf7 {[%emt 00:00:01] [%clk 00:00:06]} Qg4+ {[%emt
00:00:05] [%clk 00:00:34]} 30. Rf3 {[%emt 00:00:02] [%clk 00:00:07]} Rxf2+
{[%emt 00:00:05] [%clk 00:00:30]} 0-1

[Site "Europe Echecs"]

[Event "Championnat d'Europe de Blitz"]
[Date "2024.12.09"]
[White "Ribeiro, Gustavo"]
[Black "Kadric, Denis"]
[WhiteElo "2241"]
[BlackElo "2544"]
[Round "4.29"]
[Result "0-1"]
[TimeControl "180+2"]

1. e4 {[%emt 00:04:42] [%clk 00:03:03]} d6 {[%clk 00:03:04]} 2. c4 {[%emt
00:00:04] [%clk 00:03:01]} g6 {[%emt 00:00:05] [%clk 00:03:01]} 3. Nc3 {[%clk
00:03:02]} Bg7 {[%clk 00:03:02]} 4. g3 {[%clk 00:03:03]} e5 {[%emt 00:00:19]
[%clk 00:02:46]} 5. Bg2 {[%emt 00:00:01] [%clk 00:03:04]} c6 {[%clk 00:02:47]}
6. Nge2 {[%emt 00:00:01] [%clk 00:03:04]} a6 {[%emt 00:00:05] [%clk 00:02:45]}
7. d4 {[%emt 00:00:13] [%clk 00:02:53]} Nd7 {[%emt 00:00:06] [%clk 00:02:40]} 8.
O-O {[%emt 00:00:08] [%clk 00:02:47]} Ne7 {[%emt 00:00:04] [%clk 00:02:39]} 9.
Be3 {[%emt 00:00:32] [%clk 00:02:16]} O-O {[%emt 00:00:10] [%clk 00:02:32]} 10.
Qd2 {[%emt 00:00:04] [%clk 00:02:14]} b5 {[%emt 00:00:05] [%clk 00:02:28]} 11.
cxb5 {[%emt 00:00:16] [%clk 00:02:00]} axb5 {[%emt 00:00:01] [%clk 00:02:29]}
12. a3 {[%emt 00:00:01] [%clk 00:02:00]} Nb6 {[%emt 00:00:24] [%clk 00:02:08]}
13. b3 {[%emt 00:00:10] [%clk 00:01:52]} Qc7 {[%emt 00:00:09] [%clk 00:02:00]}
14. d5 {[%emt 00:00:16] [%clk 00:01:38]} cxd5 {[%emt 00:00:30] [%clk 00:01:33]}
15. Nxb5 {[%emt 00:00:22] [%clk 00:01:18]} Qd7 {[%emt 00:00:40] [%clk 00:00:56]}
16. Qb4 {[%emt 00:00:37] [%clk 00:00:42]} d4 {[%emt 00:00:08] [%clk 00:00:50]}
17. Bg5 {[%emt 00:00:03] [%clk 00:00:40]} Ba6 {[%emt 00:00:11] [%clk 00:00:41]}
18. Bxe7 {[%emt 00:00:20] [%clk 00:00:22]} Qxe7 {[%emt 00:00:04] [%clk
00:00:39]} 19. a4 {[%clk 00:00:23]} Rfb8 {[%emt 00:00:09] [%clk 00:00:32]} 20.
Rfc1 {[%emt 00:00:04] [%clk 00:00:21]} Bf8 {[%emt 00:00:08] [%clk 00:00:26]} 21.
Rc7 {[%emt 00:00:05] [%clk 00:00:18]} Qd8 {[%emt 00:00:03] [%clk 00:00:26]} 22.
Rac1 {[%clk 00:00:19]} d5 {[%emt 00:00:08] [%clk 00:00:20]} 23. Qd2 {[%emt
00:00:02] [%clk 00:00:19]} Bxb5 {[%emt 00:00:02] [%clk 00:00:20]} 24. axb5
{[%emt 00:00:01] [%clk 00:00:20]} Nc4 {[%emt 00:00:06] [%clk 00:00:17]} 25. bxc4
{[%emt 00:00:06] [%clk 00:00:16]} Qxc7 {[%clk 00:00:18]} 26. exd5 {[%clk
00:00:17]} Qa5 {[%emt 00:00:06] [%clk 00:00:14]} 27. Qg5 {[%emt 00:00:04] [%clk
00:00:16]} d3 {[%emt 00:00:07] [%clk 00:00:08]} 28. Nc3 {[%emt 00:00:05] [%clk
00:00:13]} Ba3 {[%emt 00:00:01] [%clk 00:00:09]} 29. Ne4 {[%emt 00:00:11] [%clk
00:00:04]} Bxc1 {[%clk 00:00:11]} 30. Nf6+ {[%emt 00:00:02] [%clk 00:00:04]} Kh8
{[%emt 00:00:03] [%clk 00:00:10]} 31. Qh4 {[%emt 00:00:02] [%clk 00:00:04]} h6
{[%emt 00:00:03] [%clk 00:00:09]} 32. Ne4 {[%emt 00:00:03] [%clk 00:00:04]} Qe1+
{[%emt 00:00:01] [%clk 00:00:09]} 33. Bf1 {[%emt 00:00:02] [%clk 00:00:04]} Rb6
{[%emt 00:00:07]} 34. d6 {[%emt 00:00:02]} Kg8 {[%emt 00:00:02] [%clk 00:00:04]}
35. Nf6+ {[%emt 00:00:01] [%clk 00:00:05]} Kg7 {[%clk 00:00:06]} 36. Ne4 {[%clk
00:00:06]} Bg5 {[%clk 00:00:07]} 37. Qg4 {[%emt 00:00:05] [%clk 00:00:03]} Ra1
{[%clk 00:00:08]} 0-1

[Site "Europe Echecs"]